bitfinex/quotes_ETHUSD_20260203
["timestamp","ask_amount","ask_price","bid_price","bid_amount"]
[1770151116222,0.9454,2294.9,2292.4,0.2335703]
[1770151116223,0.00656038,2294.3,2292.4,0.2335703]
[1770151116422,14.05125999,2295.4,2293.2,0.00656038]
[1770151116730,0.00656038,2295.5,2293.4,0.24013068]
[1770151116927,0.00656038,2295.7,2293.7,0.00656038]
[1770151117128,0.00656038,2295.7,2293.3,0.92156038]
[1770151117129,0.00656038,2295.0,2293.3,0.915]
[1770151117434,0.00656038,2295.2,2293.3,0.915]
[1770151117435,1.08888007,2296.0,2293.6,0.00656038]
[1770151117623,0.00656038,2295.0,2293.3,0.2335703]
[1770151117831,0.00656038,2295.0,2293.2,0.915]
[1770151117832,0.00656038,2294.8,2293.2,0.915]
[1770151118040,0.00656038,2294.2,2293.2,0.915]
[1770151118347,0.00656038,2294.0,2293.2,0.915]
[1770151118543,0.00656038,2293.9,2293.2,0.915]
[1770151118713,0.00656038,2293.5,2292.1,4.36265681]
[1770151118907,0.00656038,2293.6,2292.0,0.915]
[1770151119115,0.00656038,2293.3,2292.0,0.915]
[1770151119438,0.00656038,2293.1,2292.0,0.915]
[1770151119647,0.00656038,2293.0,2292.0,0.915]
[1770151120235,0.68442189,2294.4,2292.4,0.00656038]
[1770151120436,0.0011,2293.6,2292.6,0.00656038]
[1770151120636,0.0011,2293.6,2292.2,0.001]
[1770151120842,0.00656038,2293.3,2292.2,0.001]
[1770151121139,0.00656038,2293.1,2292.2,0.001]
[1770151121339,0.00656038,2293.0,2292.2,0.001]
[1770151121634,0.00656038,2293.3,2292.2,0.001]
[1770151122022,0.00656038,2293.4,2292.2,0.001]
[1770151122218,0.0011,2293.6,2292.2,0.001]
[1770151122419,0.00766038,2293.6,2292.2,0.001]
[1770151122619,0.0011,2293.6,2292.2,0.001]
[1770151123112,0.00766038,2293.6,2292.2,0.001]
[1770151123308,0.00656038,2293.5,2292.2,0.001]
[1770151123547,0.00766038,2293.6,2292.2,0.001]
[1770151123756,0.0011,2293.6,2292.2,0.001]
[1770151123936,0.0011,2293.6,2292.3,0.85210889]
[1770151124256,0.0011,2293.6,2292.7,0.00656038]
[1770151124546,0.0011,2293.8,2292.9,0.2335703]
[1770151125622,0.0011,2293.8,2292.8,0.915]
[1770151125949,0.00656038,2295.2,2292.9,1.09032229]
[1770151126145,0.00656038,2295.8,2293.6,0.00656038]
[1770151126331,13.50652607,2295.9,2293.9,0.00656038]
[1770151126332,13.49996569,2295.9,2293.9,0.00656038]
[1770151126569,13.50652607,2295.9,2293.9,0.00656038]
[1770151126737,13.49996569,2295.9,2294.0,0.00656038]
[1770151127034,1.63331045,2295.9,2294.1,0.915]
[1770151127216,0.24713105,2295.8,2294.1,0.915]
[1770151127616,0.00656038,2295.7,2294.1,0.915]
[1770151127825,1.34263646,2295.8,2294.2,1.08970447]
[1770151127826,0.24713105,2295.8,2294.2,1.08970447]
[1770151128743,0.00656038,2296.2,2294.3,0.00656038]
[1770151128923,0.00656038,2296.4,2294.4,0.00656038]
[1770151129250,0.00656038,2296.3,2294.3,0.24013068]
[1770151129551,12.02236197,2296.7,2294.3,0.24013068]
[1770151129552,0.0011,2296.7,2295.0,0.00356038]
[1770151129716,0.0011,2296.7,2295.8,1.08894503]
[1770151129918,0.1070068,2297.9,2296.0,0.24013068]
[1770151130137,0.1070068,2297.9,2296.2,0.00656038]
[1770151130317,0.00656038,2297.7,2296.0,0.2335703]
[1770151130637,0.1070068,2297.9,2296.2,0.00656038]
[1770151130953,5.0385894,2299.5,2297.0,0.00656038]
[1770151130954,0.0011,2298.6,2297.0,0.00656038]
[1770151131150,0.003,2298.7,2297.7,0.00656038]
[1770151131325,0.00765361,2300.0,2298.1,0.00656038]
[1770151131646,0.00765361,2300.0,2297.7,0.00656038]
[1770151131647,0.00656038,2299.1,2297.1,13.12627186]
[1770151131857,0.00656038,2299.1,2297.2,0.2335703]
[1770151131858,0.00656038,2298.8,2297.2,0.2335703]
[1770151132034,0.00656038,2298.7,2297.1,0.914]
[1770151132234,0.00656038,2298.5,2297.1,0.914]
[1770151132423,1.09408256,2298.9,2297.1,0.914]
[1770151132748,0.5443989,2298.8,2297.1,0.2335703]
[1770151132948,0.00656038,2299.0,2296.9,0.92056038]
[1770151132949,0.00656038,2299.2,2297.0,0.00656038]
[1770151133136,0.00656038,2298.8,2297.0,0.2335703]
[1770151133336,0.00656038,2298.2,2296.9,0.914]
[1770151133537,0.00656038,2298.4,2296.9,0.914]
[1770151133925,1.0942812,2298.4,2296.9,0.914]
[1770151134246,0.00656038,2298.4,2296.9,0.914]
[1770151134465,1.09411231,2298.8,2296.9,0.914]
[1770151134620,12.19948881,2299.4,2296.9,0.914]
[1770151134621,0.00656038,2299.5,2297.0,0.24013068]
[1770151134821,0.00656038,2298.9,2297.0,0.66027848]
[1770151135016,0.00656038,2298.9,2297.1,0.914]
[1770151135264,0.00656038,2298.8,2297.1,0.914]
[1770151135437,0.00656038,2299.1,2297.2,0.2335703]
[1770151135638,0.00656038,2299.1,2297.1,0.914]
[1770151135823,1.09403294,2299.0,2297.1,0.914]
[1770151136023,0.0011,2298.6,2297.1,2.0023147]
[1770151136343,0.0011,2298.6,2297.2,0.2335703]
[1770151136563,0.0011,2298.6,2297.2,0.24013068]
[1770151136879,0.00766038,2299.8,2297.2,0.24013068]
[1770151136880,0.0011,2299.8,2298.3,0.00656038]
[1770151137027,0.0011,2299.8,2298.5,0.24013068]
[1770151137521,12.16026584,2300.7,2298.5,0.24013068]
[1770151137522,1.38831675,2300.9,2298.9,0.00656038]
[1770151137717,1.38831675,2300.9,2298.7,0.00656038]
[1770151137718,0.00656038,2300.4,2299.0,0.914]
[1770151137929,1.09333819,2300.4,2299.0,0.914]
[1770151138128,1.08675009,2300.5,2299.0,0.914]
[1770151138351,1.08675009,2300.5,2298.9,0.914]
[1770151138352,7.59925769,2300.3,2298.9,0.914]
[1770151138560,0.75992577,2300.2,2298.6,0.913]
[1770151139660,0.00656038,2300.6,2298.6,0.913]
[1770151139661,0.57343303,2300.8,2299.1,0.2335703]
[1770151139951,1.0929333,2301.3,2299.1,0.2335703]
[1770151139952,8.68541598,2301.7,2299.7,0.00656038]
[1770151140255,8.68541598,2301.7,2298.7,0.2335703]
[1770151140256,0.00656038,2300.6,2298.7,0.2335703]
[1770151140465,0.00656038,2300.6,2298.6,2.00059138]
[1770151140466,0.00656038,2300.2,2298.6,2.00059138]
[1770151140631,0.00656038,2300.6,2298.6,2.00059138]
[1770151140632,7.82626584,2301.7,2299.7,0.24013068]
[1770151140828,0.78262658,2301.6,2299.3,0.2335703]
[1770151141033,7.59925769,2301.1,2299.4,0.913]
[1770151141361,7.59925769,2301.1,2298.7,0.913]
[1770151141362,7.60581807,2300.5,2298.7,0.913]
[1770151141576,0.76123784,2300.4,2299.0,0.00656038]
[1770151141731,0.00656038,2300.9,2298.7,0.913]
[1770151141929,1.08681476,2300.3,2298.7,0.913]
[1770151142144,1.08681476,2300.3,2297.8,0.00656038]
[1770151142145,0.00656038,2299.8,2297.6,1.08808768]
[1770151142341,0.00656038,2300.2,2297.4,17.20468365]
[1770151142342,0.00656038,2300.6,2298.6,0.00656038]
[1770151142656,0.00656038,2300.5,2298.6,0.00656038]
[1770151142859,0.00656038,2300.5,2298.2,0.00656038]
[1770151142860,7.59925769,2299.7,2297.9,0.913]
[1770151143064,0.00656038,2299.2,2297.9,0.913]
[1770151143356,0.00656038,2299.0,2297.9,0.913]
[1770151143543,0.00656038,2299.3,2297.9,0.913]
[1770151143745,0.00656038,2299.0,2297.9,0.913]
[1770151143925,0.00656038,2298.8,2297.9,0.913]
[1770151144539,0.00656038,2298.3,2296.7,4.35405063]
[1770151144744,0.00656038,2298.3,2296.5,12.84539173]
[1770151144745,0.00656038,2298.2,2296.5,0.913]
[1770151144927,0.00656038,2298.0,2296.5,0.913]
[1770151145129,0.00656038,2298.5,2296.8,1.08844773]
[1770151145374,7.60581807,2299.7,2297.2,0.00656038]
[1770151145573,7.60581807,2299.7,2297.1,0.00656038]
[1770151145574,0.00656038,2299.3,2297.1,0.00656038]
[1770151145761,0.00656038,2298.3,2296.5,0.913]
[1770151145963,0.00656038,2297.7,2296.5,2.28883917]
[1770151146163,0.00656038,2297.7,2296.5,0.913]
[1770151146164,0.00656038,2297.5,2296.5,0.913]
[1770151146359,0.00656038,2298.3,2296.5,0.913]
[1770151146542,0.00656038,2297.6,2296.5,0.913]
[1770151146946,0.00656038,2298.5,2296.6,0.00656038]
[1770151147168,0.00656038,2297.8,2296.5,0.913]
[1770151147370,0.00656038,2297.1,2296.1,0.001]
[1770151147570,0.00656038,2297.3,2296.1,0.001]
[1770151147768,0.00656038,2296.8,2296.1,0.001]
[1770151148174,0.00656038,2296.8,2295.3,0.913]
[1770151148175,0.00656038,2296.3,2295.3,0.913]
[1770151148378,0.00656038,2296.4,2295.3,0.913]
[1770151148542,0.00656038,2296.2,2295.3,0.913]
[1770151148747,0.00656038,2297.0,2295.3,0.913]
[1770151149092,0.00656038,2296.6,2296.1,0.001]
[1770151149250,0.00656038,2296.7,2295.3,0.913]
[1770151149441,0.00656038,2296.4,2295.3,0.913]
[1770151149642,0.00656038,2296.3,2295.3,0.913]
[1770151149887,0.00656038,2296.6,2295.3,0.913]
[1770151150172,0.00656038,2296.5,2295.3,0.913]
[1770151150337,0.00656038,2296.6,2295.3,2.00217054]
[1770151150543,0.00656038,2297.1,2295.4,0.2335703]
[1770151150755,0.00656038,2297.2,2295.4,0.2335703]
[1770151151189,0.00656038,2296.8,2295.3,0.913]
[1770151151343,0.00656038,2297.0,2295.3,0.913]
[1770151151542,0.00656038,2297.2,2295.4,0.2335703]
[1770151151763,0.00656038,2297.1,2295.4,0.2335703]
[1770151151973,0.00656038,2296.9,2295.3,0.52700352]
[1770151152298,0.00656038,2296.6,2295.3,1.08917896]
[1770151152477,0.00656038,2296.5,2295.2,0.913]
[1770151152793,0.00656038,2296.5,2294.9,0.2345703]
[1770151152794,0.00656038,2295.9,2294.9,0.001]
[1770151153024,0.00656038,2296.1,2294.9,0.001]
[1770151153288,0.00656038,2296.9,2295.4,1.08913253]
[1770151153450,0.00656038,2296.7,2295.4,1.08913088]
[1770151153653,0.00656038,2296.7,2295.4,1.08913334]
[1770151153953,0.00656038,2296.7,2295.2,4.35678064]
[1770151154162,0.00656038,2296.7,2295.2,0.87140625]
[1770151154851,0.00656038,2296.7,2295.0,4.35728181]
[1770151154852,0.00656038,2296.6,2295.0,1.08932461]
[1770151155063,0.00656038,2296.5,2295.0,1.08932461]
[1770151155291,0.00656038,2297.0,2294.9,4.35833272]
[1770151155292,0.00656038,2297.1,2294.9,1.09036823]
[1770151155489,7.59925769,2297.8,2295.6,0.00656038]
[1770151155690,0.00656038,2298.0,2295.9,0.00656038]
[1770151155896,0.00656038,2298.1,2296.2,0.00656038]
[1770151156057,0.00656038,2298.0,2296.3,1.08867528]
[1770151156256,0.00656038,2298.0,2296.3,1.08868712]
[1770151156257,0.00656038,2297.7,2296.3,1.08868712]
[1770151156760,0.00656038,2297.7,2296.2,1.08872734]
[1770151156761,0.00656038,2297.6,2296.2,1.08872734]
[1770151156980,0.00656038,2297.7,2296.3,1.08870549]
[1770151157282,0.00656038,2297.7,2296.2,1.08872203]
[1770151157773,0.00656038,2297.7,2296.1,1.08878527]
[1770151157774,0.00656038,2297.4,2296.1,1.08878527]
[1770151157952,0.00656038,2297.5,2296.0,0.913]
[1770151158149,0.00656038,2297.8,2296.1,1.32233078]
[1770151158350,0.00656038,2297.7,2296.1,1.32233078]
[1770151158584,0.00656038,2297.8,2296.1,1.32233078]
[1770151158756,0.00656038,2298.1,2296.1,1.32233078]
[1770151158959,0.00656038,2297.5,2296.1,1.32233078]
[1770151159166,0.00656038,2297.8,2296.1,3.40350805]
[1770151159866,0.00656038,2297.8,2296.3,0.2335703]
[1770151160064,0.00656038,2297.8,2296.3,1.08868046]
[1770151160288,0.00656038,2297.8,2296.1,3.40352586]
[1770151160289,0.00656038,2297.6,2296.1,3.40352586]
[1770151160485,0.00656038,2297.6,2296.1,3.40351438]
[1770151160757,1.08787589,2298.1,2296.3,1.08870637]
[1770151160889,0.00656038,2297.8,2296.2,0.2335703]
[1770151161092,0.00656038,2297.8,2296.1,2.08117727]
[1770151161093,0.00656038,2297.5,2296.1,2.08117727]
[1770151161261,0.00656038,2297.2,2296.0,0.913]
[1770151161610,0.00656038,2297.2,2295.3,14.02709031]
[1770151161611,0.00656038,2296.5,2295.0,0.54478566]
[1770151161759,0.00656038,2296.2,2294.9,0.001]
[1770151162088,0.00656038,2296.6,2294.9,0.001]
[1770151162089,5.18262384,2297.8,2296.1,0.001]
[1770151162288,0.00656038,2296.7,2296.1,0.001]
[1770151162493,0.00656038,2296.5,2294.9,15.18154572]
[1770151162677,0.00656038,2296.4,2295.2,0.001]
[1770151162990,0.00656038,2295.7,2295.2,0.001]
[1770151163365,0.00656038,2295.8,2294.9,0.001]
[1770151163561,0.00656038,2295.7,2294.9,0.001]
[1770151163759,1.09499797,2296.9,2294.9,0.001]
[1770151163958,0.00656038,2296.0,2294.9,0.001]
[1770151164161,0.00656038,2295.8,2294.9,0.001]
[1770151164475,0.00656038,2296.0,2294.9,0.001]
[1770151164787,0.00656038,2295.9,2294.9,0.001]
[1770151164987,0.00656038,2296.4,2294.9,0.001]
[1770151165182,4.3602574,2296.9,2294.9,0.001]
[1770151165183,1.08842352,2296.9,2294.9,0.001]
[1770151165381,1.80152269,2296.8,2294.9,0.64433228]
[1770151165590,1.80152269,2296.8,2295.0,0.24013068]
[1770151165763,1.08837678,2297.0,2295.0,0.24013068]
[1770151166165,1.08837678,2297.0,2295.1,1.08927715]
[1770151166365,0.00656038,2297.1,2295.1,1.08927715]
[1770151166563,7.59925769,2297.2,2295.2,0.24013068]
[1770151166784,12.57310933,2297.6,2295.2,0.24013068]
[1770151166785,8.72215909,2297.8,2295.8,0.00656038]
[1770151166970,0.2989014,2297.8,2296.3,0.00656038]
[1770151167173,0.2989014,2297.8,2295.5,1.05811988]
[1770151167174,7.59925769,2296.5,2295.5,1.05811988]
[1770151167374,7.60581807,2297.1,2295.0,1.08931263]
[1770151167580,12.57966971,2297.5,2295.0,1.08931263]
[1770151167581,0.00656038,2297.4,2295.5,0.00656038]
[1770151167780,0.00656038,2297.4,2295.4,0.00656038]
[1770151167781,7.59925769,2297.7,2295.4,12.62803286]
[1770151168100,7.60581807,2297.7,2295.7,0.00656038]
[1770151168390,13.66120125,2297.6,2295.7,0.00656038]
[1770151168593,4.35892806,2297.7,2295.9,0.00656038]
[1770151168594,1.80201293,2297.5,2295.9,0.00656038]
[1770151168892,8.98615782,2297.8,2296.2,0.00656038]
[1770151169092,0.2989014,2297.8,2296.8,0.00656038]
[1770151169463,0.2989014,2297.8,2296.4,0.00656038]
[1770151169464,1.38690222,2297.8,2296.3,0.913]
[1770151169660,0.2989014,2297.8,2296.3,0.913]
[1770151169888,1.38691415,2297.8,2296.3,0.913]
[1770151170091,0.57387487,2297.7,2296.3,0.913]
[1770151170299,8.98617184,2297.8,2297.2,0.00656038]
[1770151170300,0.2989014,2297.8,2297.2,0.00656038]
[1770151170474,0.003,2298.2,2297.2,0.00656038]
[1770151170668,0.003,2298.2,2297.3,0.00656038]
[1770151170876,0.003,2298.2,2297.2,0.00656038]
[1770151171298,0.003,2298.2,2297.1,0.00656038]
[1770151171469,0.003,2298.2,2297.2,0.00656038]
[1770151171669,0.003,2298.2,2296.5,1.63918813]
[1770151171670,0.003,2298.2,2296.5,1.39905745]
[1770151171871,0.003,2298.2,2296.1,2.75408612]
[1770151171872,0.00656038,2297.5,2295.8,2.48797995]
[1770151172168,12.57966971,2298.0,2296.1,0.00656038]
[1770151172169,1.08809192,2297.6,2296.1,0.00656038]
[1770151172380,16.92478582,2298.0,2296.1,0.00656038]
[1770151172381,1.08794986,2297.9,2296.3,0.00656038]
[1770151172581,1.80128586,2297.8,2296.3,0.00656038]
[1770151172898,1.80128586,2297.8,2295.9,0.00656038]
[1770151173094,2.37322244,2297.8,2296.0,0.85363498]
[1770151173307,2.37322244,2297.8,2295.9,0.00656038]
[1770151173308,2.37322244,2297.8,2296.1,0.86082776]
[1770151173600,2.37322244,2297.8,2295.8,0.00656038]
[1770151173601,2.37978282,2297.8,2295.8,0.00656038]
[1770151173807,0.91936589,2297.7,2295.9,0.85444695]
[1770151173971,0.91936589,2297.7,2295.8,0.00656038]
[1770151173972,9.05366798,2297.7,2295.8,0.00656038]
[1770151174303,9.05366798,2297.7,2295.7,0.00656038]
[1770151174304,1.08809192,2297.6,2295.9,0.85459397]
[1770151174503,9.61326399,2297.7,2296.3,0.001]
[1770151174706,0.76322577,2298.2,2297.1,0.00656038]
[1770151175003,0.0011,2298.0,2297.6,0.00656038]
[1770151175178,0.003,2298.2,2297.6,0.00656038]
[1770151175379,0.0041,2298.2,2297.2,0.00656038]
[1770151175596,0.0041,2298.2,2297.3,0.85315881]
[1770151175801,0.0041,2298.2,2297.4,0.85315881]
[1770151176114,0.0041,2298.2,2297.2,0.00656038]
[1770151176272,0.0041,2298.2,2296.9,0.00656038]
[1770151176273,0.0041,2298.2,2296.9,1.08839187]
[1770151176473,0.0041,2298.2,2297.1,1.08831802]
[1770151176705,0.0011,2298.8,2297.4,0.24013068]
[1770151176911,0.0011,2299.0,2297.6,1.40561783]
[1770151177242,0.0011,2299.0,2297.7,1.76591804]
[1770151177431,0.0011,2299.0,2297.8,0.85291804]
[1770151177606,0.0011,2299.0,2297.7,0.913]
[1770151177807,0.0011,2299.0,2297.9,0.00656038]
[1770151178008,0.0011,2299.0,2297.8,1.22722069]
[1770151178009,0.0011,2299.0,2297.7,0.913]
[1770151178215,0.0011,2299.0,2297.8,1.94578307]
[1770151178418,0.0011,2299.0,2298.0,0.00656038]
[1770151178811,0.0011,2299.0,2297.9,0.00656038]
[1770151179029,0.0011,2299.0,2297.8,0.00656038]
[1770151179239,0.0011,2299.0,2297.8,1.094557]
[1770151179552,4.3555473,2300.0,2297.8,1.094557]
[1770151179553,0.0011,2300.0,2298.5,12.62803286]
[1770151179750,0.0011,2300.0,2298.6,2.11338732]
[1770151180040,0.0011,2300.0,2298.5,12.62803286]
[1770151180041,0.0011,2300.0,2298.7,0.913]
[1770151180242,0.00656038,2299.8,2298.8,0.913]
[1770151180445,0.00656038,2299.8,2298.2,1.52192677]
[1770151180446,0.00656038,2299.4,2298.2,1.52192677]
[1770151180653,0.00656038,2299.4,2298.3,0.913]
[1770151180816,0.00656038,2299.5,2298.3,2.00075309]
[1770151181217,0.00656038,2299.2,2298.3,0.913]
[1770151181520,0.00656038,2299.3,2298.2,1.52192677]
[1770151181843,0.00656038,2299.1,2298.2,2.43492677]
[1770151182047,0.00656038,2299.1,2297.4,5.75178342]
[1770151182048,0.00656038,2298.5,2297.1,1.89540039]
[1770151182212,0.00656038,2298.9,2297.1,1.89540039]
[1770151182213,7.60581807,2298.9,2297.1,0.913]
[1770151182414,0.00656038,2298.5,2297.1,0.913]
[1770151182736,0.00656038,2298.4,2297.1,0.913]
[1770151183179,0.00656038,2297.8,2296.3,0.56791514]
[1770151183342,1.62256054,2298.9,2296.7,1.09506437]
[1770151183543,0.00656038,2298.6,2296.7,1.08849572]
[1770151183764,0.00656038,2298.8,2296.8,0.00656038]
[1770151184036,0.00656038,2298.8,2296.7,1.0950561]
[1770151184238,1.63324293,2298.8,2296.9,1.08842352]
[1770151184440,12.57966971,2299.1,2296.9,1.0949839]
[1770151184670,13.66049485,2299.1,2297.2,0.00656038]
[1770151184868,0.00656038,2299.2,2297.2,0.00656038]
[1770151184869,8.68647784,2299.5,2297.5,0.00656038]
[1770151185175,0.00656038,2299.6,2297.7,0.00656038]
[1770151185466,0.00656038,2299.6,2297.8,0.85418621]
[1770151185671,0.00656038,2299.6,2297.7,0.00656038]
[1770151185868,0.00656038,2299.5,2297.7,1.3560714]
[1770151186070,0.00656038,2299.5,2297.7,1.36263178]
[1770151186254,0.00656038,2299.6,2297.8,1.08799721]
[1770151186443,0.00656038,2299.5,2297.8,1.08799721]
[1770151186643,0.00656038,2299.5,2297.7,5.71462063]
[1770151186644,0.00656038,2299.1,2297.7,1.3560714]
[1770151186844,0.00656038,2299.1,2297.6,2.00109094]
[1770151186845,0.00656038,2298.9,2297.6,2.00109094]
[1770151187067,0.00656038,2298.9,2297.6,0.913]
[1770151187785,0.00656038,2299.0,2297.6,0.913]
[1770151188274,0.00656038,2298.9,2297.6,0.913]
[1770151188474,0.00656038,2298.9,2297.4,1.08916471]
[1770151188475,0.00656038,2298.6,2297.4,0.914]
[1770151188848,0.00656038,2298.7,2297.4,0.914]
[1770151189056,0.00656038,2298.8,2297.4,0.914]
[1770151189244,0.00656038,2298.4,2297.4,0.001]
[1770151189446,0.00656038,2298.3,2297.4,0.001]
[1770151189655,0.00656038,2298.7,2297.4,0.001]
[1770151189656,0.0011,2298.9,2297.4,0.001]
[1770151190265,0.0011,2298.9,2297.5,0.85452301]
[1770151190575,0.0011,2298.9,2297.6,2.43644751]
[1770151191142,0.0011,2298.9,2297.6,2.44300789]
[1770151191351,0.003,2299.5,2298.1,12.92141171]
[1770151191557,0.234043,2301.4,2299.1,0.00656038]
[1770151191771,0.234043,2301.4,2299.0,0.00656038]
[1770151191772,0.00656038,2300.9,2298.9,0.24013068]
[1770151192081,1.87439563,2301.1,2298.9,0.24013068]
[1770151192082,1.19202828,2301.1,2299.0,0.24013068]
[1770151192384,1.19202828,2301.1,2299.1,0.2335703]
[1770151192582,4.35156158,2301.5,2299.2,0.00656038]
[1770151192879,0.00656038,2301.2,2299.3,0.91956038]
[1770151193787,0.00656038,2301.1,2299.3,0.91956038]
[1770151193991,0.00656038,2301.4,2299.4,0.2335703]
[1770151194214,0.00656038,2301.5,2299.7,0.00656038]
[1770151194485,0.00656038,2301.5,2299.6,1.3272501]
[1770151194649,1.09275458,2301.7,2299.6,1.3272501]
[1770151194850,1.09275458,2301.7,2299.6,1.08712733]
[1770151194851,0.00656038,2301.3,2299.6,1.08712733]
[1770151195150,0.00656038,2301.1,2299.4,14.07259466]
[1770151195350,0.00656038,2301.1,2299.5,1.607942]
[1770151195351,0.00656038,2301.0,2299.5,1.607942]
[1770151195867,0.00656038,2301.0,2298.6,4.35684638]
[1770151195868,0.00656038,2300.8,2299.6,0.912]
[1770151196273,0.00656038,2300.9,2299.6,0.912]
[1770151196670,1.08609677,2301.9,2299.8,0.00656038]
[1770151196989,1.08609677,2301.9,2299.7,0.2335703]
[1770151196990,0.00656038,2301.4,2299.7,0.2335703]
[1770151197306,0.00656038,2301.5,2299.7,2.1586392]
[1770151197618,0.00656038,2301.4,2299.7,2.1586392]
[1770151197910,0.00656038,2300.9,2299.7,1.9250689]
[1770151198115,0.00656038,2301.1,2299.6,0.912]
[1770151198272,0.00656038,2301.2,2299.7,0.2335703]
[1770151198471,0.00656038,2302.1,2299.9,1.09355588]
[1770151198786,0.00656038,2302.1,2299.6,1.99910899]
[1770151198787,0.00656038,2301.3,2299.6,1.99910899]
[1770151198988,0.00656038,2301.3,2300.0,0.2335703]
[1770151199171,0.00656038,2301.5,2299.6,17.92339836]
[1770151199370,0.00656038,2301.2,2299.7,1.79299587]
[1770151199598,0.00656038,2301.2,2299.7,2.88006764]
[1770151199793,1.39448259,2302.0,2300.1,0.00656038]
[1770151199982,1.39448259,2302.0,2300.0,0.24013068]
[1770151199983,0.00656038,2301.8,2299.9,13.74982443]
[1770151200295,0.00656038,2301.7,2300.0,1.81044716]
[1770151200486,0.30190169,2302.0,2300.2,1.08686201]
[1770151200694,0.30190169,2302.0,2300.0,1.81044716]
[1770151200695,0.00656038,2301.4,2300.0,1.81044716]
[1770151201006,0.00656038,2301.2,2299.7,1.79299587]
[1770151201208,0.00656038,2300.8,2299.6,0.912]
[1770151201395,0.00656038,2301.0,2299.6,0.912]
[1770151201574,0.00656038,2300.8,2299.6,0.912]
[1770151201771,0.00656038,2300.8,2298.3,17.01374822]
[1770151201772,0.00656038,2300.0,2298.3,17.01374822]
[1770151202071,0.00656038,2299.9,2298.4,2.84654187]
[1770151202295,0.00656038,2300.0,2298.5,1.98602901]
[1770151202498,0.00656038,2300.0,2298.5,3.07365348]
[1770151202717,0.00656038,2299.7,2298.4,0.912]
[1770151203004,0.0011,2300.7,2299.0,12.66939511]
[1770151203307,0.0011,2300.9,2299.8,0.00656038]
[1770151203474,0.0011,2300.9,2300.0,0.00656038]
[1770151203669,0.0011,2301.9,2300.0,0.00656038]
[1770151203874,0.00656038,2301.6,2299.9,0.912]
[1770151204179,0.0011,2301.9,2300.0,1.08790257]
[1770151204414,0.0011,2301.9,2300.0,0.24013068]
[1770151204709,0.00766038,2301.9,2300.1,1.08690926]
[1770151204923,0.57571872,2301.9,2300.0,1.08693954]
[1770151205209,0.0011,2301.9,2300.3,0.00656038]
[1770151205371,0.0011,2301.9,2300.5,0.00656038]
[1770151205581,0.0011,2301.9,2300.7,0.00656038]
[1770151205777,0.0011,2301.9,2301.0,0.00656038]
[1770151206012,0.0011,2301.9,2301.1,0.912]
[1770151206379,0.0011,2301.9,2301.1,0.90335893]
[1770151206380,0.00766038,2301.9,2301.1,0.90335893]
[1770151206811,0.00766038,2301.9,2300.4,0.912]
[1770151207010,0.0011,2301.9,2300.5,4.58032767]
[1770151207308,0.0011,2301.9,2300.6,0.54923277]
[1770151207508,0.00656038,2301.7,2300.4,0.912]
[1770151207712,0.00656038,2301.8,2300.4,0.912]
[1770151208015,0.00656038,2303.8,2301.3,12.66283473]
[1770151208212,0.00656038,2304.4,2301.3,12.66283473]
[1770151208213,19.81217093,2305.3,2303.6,0.00656038]
[1770151208416,0.19929727,2306.0,2303.6,0.00656038]
[1770151208417,7.58099926,2305.9,2304.6,0.00656038]
[1770151208583,12.23117167,2306.0,2304.4,0.00656038]
[1770151208584,16.56770039,2306.0,2304.4,0.00656038]
[1770151208787,16.56770039,2306.0,2304.5,0.00656038]
[1770151208788,0.4725444,2305.8,2304.5,0.00656038]
[1770151209123,1.38858698,2306.5,2304.7,0.00656038]
[1770151209322,2.76191889,2306.5,2304.7,0.00656038]
[1770151209631,2.76847927,2306.5,2304.7,0.00656038]
[1770151209779,0.00656038,2306.2,2303.9,0.00656038]
[1770151209986,7.58099926,2306.0,2304.2,0.00656038]
[1770151210292,7.58099926,2306.0,2303.9,0.00656038]
[1770151210480,1.08431644,2305.6,2303.7,0.00656038]
[1770151210680,0.00656038,2305.2,2303.5,1.33962221]
[1770151210883,0.00656038,2305.2,2302.9,0.00656038]
[1770151210884,12.23117167,2304.7,2302.9,0.00656038]
[1770151211080,12.23117167,2304.7,2302.1,0.00656038]
[1770151211081,0.00656038,2304.5,2302.5,0.00656038]
[1770151211281,7.58755964,2305.2,2302.8,0.00656038]
[1770151211526,7.58099926,2305.2,2303.1,0.00656038]
[1770151211736,0.00656038,2305.0,2303.1,0.00656038]
[1770151211886,0.00656038,2305.0,2302.9,0.00656038]
[1770151211887,0.00656038,2304.8,2302.9,0.00656038]
[1770151212089,0.00656038,2304.8,2302.3,4.35001295]
[1770151212090,0.00656038,2304.4,2301.8,0.28715422]
[1770151212295,0.00656038,2303.9,2301.8,0.2937146]
[1770151212500,1.08521074,2303.7,2301.8,0.2937146]
[1770151212922,1.08521074,2303.7,2301.8,0.28715422]
[1770151212923,0.00656038,2303.5,2301.8,0.28715422]
[1770151213143,0.00656038,2303.4,2301.4,0.00656038]
[1770151213370,13.31617508,2304.2,2302.2,0.00656038]
[1770151213645,7.58099926,2304.5,2302.3,0.00656038]
[1770151213803,0.00656038,2305.1,2302.3,0.00656038]
[1770151213804,1.08451118,2305.2,2303.3,0.00656038]
[1770151214007,0.57014774,2305.1,2303.4,0.00656038]
[1770151214204,1.08441051,2305.4,2303.7,0.00656038]
[1770151214439,0.00656038,2304.9,2302.9,0.911]
[1770151214735,0.00656038,2305.0,2302.9,0.911]
[1770151214937,0.57670812,2305.1,2303.0,0.00656038]
[1770151214938,0.00656038,2305.1,2303.0,0.00656038]
[1770151215139,0.00656038,2305.1,2302.5,0.00656038]
[1770151215140,0.00656038,2304.8,2302.5,0.00656038]
[1770151215439,0.00656038,2304.8,2301.9,0.00656038]
[1770151215440,0.00656038,2304.0,2302.0,0.911]
[1770151215643,0.0011,2303.2,2302.0,0.911]
[1770151215844,0.0011,2303.2,2302.4,0.00656038]
[1770151216048,0.0011,2303.2,2302.5,0.00656038]
[1770151216261,8.39855964,2304.6,2303.0,0.00656038]
[1770151216262,0.811,2304.6,2303.0,0.00656038]
[1770151216412,0.00656038,2305.1,2303.1,0.00656038]
[1770151216612,0.00656038,2305.1,2302.1,0.52552304]
[1770151216613,0.00656038,2304.2,2302.1,0.52552304]
[1770151216806,0.00656038,2304.2,2301.5,12.66283473]
[1770151216807,0.00656038,2303.7,2301.5,12.66283473]
[1770151217014,0.00656038,2304.1,2301.9,13.14449498]
[1770151217246,0.00656038,2304.3,2302.1,0.00656038]
[1770151217551,1.09108709,2305.2,2302.9,0.24013068]